fUSD/lending_fUSD_20240528
["ID","MTS","AMOUNT","RATE_DAILY","PERIOD"]
[328099926,1716855031777,-1387.54680365,0.00013963,2]
[328099927,1716855031787,-442.49404578,0.00013964,2]
[328099928,1716855031837,-557.50595422,0.00013964,2]
[328099929,1716855031846,-690.32456703,0.00013966,2]
[328099930,1716855031894,-1100.84543959,0.00013966,2]
[328099931,1716855031903,-152.04,0.00013973,2]
[328099932,1716855031914,-179.69,0.00013973,2]
[328099933,1716855031926,-162.33,0.00013973,2]
[328099934,1716855031935,-150.0,0.00019451,2]
[328099935,1716855031945,-155.0,0.0002,2]
[328099936,1716855031954,-722.06,0.00022633,2]
[328099937,1716855031963,-433.45814983,0.00024,2]
[328099938,1716855031972,-472.80608482,0.00024,2]
[328099939,1716855031981,-1808.22,0.00024421,2]
[328099940,1716855031990,-151.31439051,0.00024468,2]
[328099941,1716855031999,-166.66666667,0.00024495,2]
[328099942,1716855032008,-250.0,0.0002454,2]
[328099943,1716855032017,-170.877876,0.00024545,2]
[328099944,1716855032026,-250.0,0.0002455,2]
[328099945,1716855032035,-250.0,0.00024552,2]
[328099946,1716855032045,-284.05,0.0002456,2]
[328099947,1716855032055,-223.16,0.00024563,2]
[328099948,1716855032066,-2472.17,0.00024564,2]
[328099949,1716855032076,-368.2,0.00024569,2]
[328099950,1716855032085,-200.0,0.000246,2]
[328099951,1716855032094,-207.5,0.00024608,2]
[328099952,1716855032104,-157.57777643,0.00024653,2]
[328099953,1716855032113,-157.57777643,0.00024669,2]
[328099954,1716855032124,-158.15491483,0.00024675,2]
[328099955,1716855032135,-151.31439051,0.00024719,2]
[328099956,1716855032145,-158.15491483,0.00024799,2]
[328099957,1716855032156,-151.31439051,0.00024874,2]
[328099958,1716855032165,-722.06,0.00024897,2]
[328099959,1716855032174,-927.63905296,0.00025,2]
[328099960,1716855032183,-1050.0,0.00025,2]
[328099961,1716855032192,-155.0,0.00025049,2]
[328099962,1716855032201,-158.15491483,0.0002505,2]
[328099963,1716855032210,-151.31439051,0.00025141,2]
[328099964,1716855032219,-158.15491483,0.00025265,2]
[328099965,1716855032229,-157.57777643,0.00025272,2]
[328099966,1716855032238,-151.31439051,0.00025443,2]
[328099967,1716855032247,-3550.0,0.000255,3]
[328099968,1716855032256,-866.0,0.000255,3]
[328099969,1716855032266,-152.69272365,0.00025618,2]
[328099970,1716855032275,-158.15491483,0.00025723,2]
[328099971,1716855032284,-153.54170393,0.00025748,2]
[328099972,1716855032293,-155.04441625,0.00025768,2]
[328099973,1716855032304,-152.80357337,0.00025905,2]
[328099974,1716855032315,-154.57300255,0.00026006,2]
[328099975,1716855032324,-152.80357337,0.00026306,2]
[328099976,1716855032333,-161.05208565,0.00026441,2]
[328099977,1716855032342,-158.15491483,0.00026574,2]
[328099978,1716855032351,-155.76632362,0.00026631,2]
[328099979,1716855032360,-158.15491483,0.00026676,2]
[328099980,1716855032369,-16530.36779849,0.00026699,2]
[328099981,1716855032573,-676.1,0.00026699,2]
[328099983,1716855037662,-1928.236895,0.00026699,2]
[328099984,1716855037942,-346.04439381,0.00026699,2]
[328099985,1716855037952,-163.57463032,0.000267,2]
[328099986,1716855037962,-859.43849708,0.000267,2]
[328099987,1716855037972,-255.51065387,0.000267,2]
[328099988,1716855040334,-70.01051694,0.000267,2]
[328099989,1716855040344,-188.71850387,0.000267,2]
[328099990,1716855040392,-1736.87501893,0.000267,2]
[328099991,1716855041278,-500.00898235,0.000267,2]
[328100014,1716855042812,-1552.16653,0.000267,2]
[328100015,1716855042979,-19351.26633302,0.000267,2]
[328100016,1716855042989,-153.02525692,0.00026703,2]
[328100017,1716855043000,-153.54170393,0.00026719,2]
[328100018,1716855043010,-1501.77727144,0.00026739,2]
[328100019,1716855043020,-16834.77144657,0.0002674,2]
[328100020,1716855043029,-170.877876,0.00026745,2]
[328100021,1716855043038,-158.15491483,0.00026763,2]
[328100022,1716855043047,-170.877876,0.00026764,2]
[328100023,1716855043056,-229.62054589,0.00026788,2]
[328100024,1716855043065,-151.05,0.0002679,2]
[328100025,1716855043077,-151.05,0.0002679,2]
[328100026,1716855043088,-151.05,0.0002679,2]
[328100027,1716855043098,-355.09072427,0.00026797,2]
[328100028,1716855043107,-500.0,0.00026797,2]
[328100029,1716855043119,-500.0,0.00026797,2]
[328100030,1716855043129,-500.0,0.00026797,2]
[328100031,1716855043138,-323.40006397,0.00026797,2]
[328100032,1716855043150,-500.0,0.00026797,2]
[328100033,1716855043159,-500.0,0.00026797,2]
[328100034,1716855043169,-583.00620659,0.00026798,2]
[328100035,1716855043180,-160.17360133,0.00026798,2]
[328100036,1716855043191,-13732.96448994,0.00026798,2]
[328100037,1716855043219,-1256.41782348,0.00026796,2]
[328100038,1716855043228,-53253.19240376,0.00026798,2]
[328100039,1716855045745,-155.0,0.00026796,2]
[328100040,1716855045756,-11406.40840021,0.00026798,2]
[328100041,1716855045768,-32439.39449639,0.00026798,2]
[328100042,1716855045779,-450.51757045,0.00026798,2]
[328100043,1716855045791,-6370.17133023,0.00026798,2]
[328100044,1716855045803,-2606.014868,0.00026798,2]
[328100045,1716855045819,-109318.24329732,0.00026798,2]
[328100046,1716855045872,-1000.0,0.00026796,2]
[328100047,1716855045882,-1825.04658628,0.00026798,2]
[328100048,1716855045931,-31561.95334992,0.00026798,2]
[328100049,1716855045942,-897.58999998,0.00026798,2]
[328100050,1716855046101,-1006.05091694,0.00026798,2]
[328100062,1716856054094,-290.69690651,0.00013957,2]
[328100063,1716856054114,-1000.0,0.00013958,2]
[328100064,1716856054134,-1172.32580215,0.00013959,2]
[328100084,1716856231941,-150.0,0.00013956,2]
[328100085,1716856231951,-143.26397614,0.00013956,2]
[328100086,1716856231962,-6.73602386,0.00013956,2]
[328100087,1716856231971,-643.50303211,0.00013957,2]
[328100088,1716856233471,-860.35582076,0.00013957,2]
[328100089,1716856233488,-6961.76893544,0.00013957,2]
[328100090,1716856233578,-765.5160698,0.00013957,2]
[328100091,1716856233589,-10283.83426606,0.00013957,2]
[328100092,1716856233601,-19514.97812417,0.00013957,2]
[328100093,1716856233610,-1162.63382345,0.00013958,2]
[328100094,1716856233620,-160.32,0.00013973,2]
[328100095,1716856233629,-163.6,0.00013973,2]
[328100096,1716856233639,-155.0,0.00015,2]
[328100097,1716856233648,-210.0,0.00015351,2]
[328100098,1716856233657,-210.0,0.00015351,2]
[328100099,1716856233667,-7524.15870893,0.00017259,2]
[328100100,1716856233676,-499.99,0.00017534,2]
[328100101,1716856233685,-194.53,0.00018207,2]
[328100102,1716856233695,-820.06,0.00020948,2]
[328100103,1716856233704,-250.0,0.00022255,2]
[328100104,1716856233713,-250.0,0.00022567,2]
[328100105,1716856233722,-236.7,0.00022593,2]
[328100106,1716856233731,-1276.35,0.00022652,2]
[328100107,1716856233741,-294.56,0.00022674,2]
[328100108,1716856233750,-1000.0,0.00022758,2]
[328100109,1716856233759,-250.0,0.00022759,2]
[328100110,1716856233769,-166.72,0.00022806,2]
[328100111,1716856233779,-222.33,0.00022921,2]
[328100112,1716856233788,-4601.65,0.00022921,2]
[328100113,1716856233797,-820.06,0.00023212,2]
[328100114,1716856233806,-290.69690651,0.00023847,2]
[328100115,1716856233816,-290.69690651,0.00023847,2]
[328100116,1716856233826,-454.26464379,0.00023848,2]
[328100117,1716856233835,-433.45814983,0.00024429,2]
[328100118,1716856233844,-472.80608482,0.00024429,2]
[328100119,1716856233855,-158.53280031,0.0002443,2]
[328100120,1716856233864,-160.74,0.00024515,2]
[328100121,1716856233874,-158.53280031,0.00024534,2]
[328100122,1716856233883,-180.0,0.00024674,2]
[328100123,1716856233892,-161.05208565,0.00024705,2]
[328100124,1716856233902,-157.37487198,0.00024723,2]
[328100125,1716856233911,-151.1317861,0.00024759,2]
[328100126,1716856233920,-157.51349002,0.00024792,2]
[328100127,1716856233929,-169.04857916,0.00024816,2]
[328100128,1716856233939,-200.0,0.00024848,2]
[328100129,1716856233948,-360.0,0.00024871,2]
[328100130,1716856233957,-241.3,0.00024895,2]
[328100131,1716856233966,-2696.0,0.000249,2]
[328100132,1716856233976,-22015.05834821,0.000249,2]
[328100133,1716856233985,-752.00868498,0.000249,2]
[328100134,1716856233995,-324.8170427,0.000249,2]
[328100135,1716856234004,-163.41355236,0.00024901,2]
[328100136,1716856234014,-541.55577053,0.00024902,2]
[328100137,1716856234024,-169.04857916,0.00024908,2]
[328100138,1716856234033,-173.15,0.00024913,2]
[328100139,1716856234043,-245.309139,0.00024932,2]
[328100140,1716856234054,-169.04857916,0.00024949,2]
[328100141,1716856234064,-151.1317861,0.00024986,2]
[328100142,1716856234073,-151.02,0.0002499,2]
[328100143,1716856234083,-151.02,0.0002499,2]
[328100144,1716856234093,-151.02,0.0002499,2]
[328100145,1716856234102,-151.02,0.0002499,2]
[328100146,1716856234111,-151.02,0.0002499,2]
[328100147,1716856234121,-1246.26126998,0.00024998,2]
[328100148,1716856234130,-155.0,0.00024998,2]
[328100149,1716856234140,-500.0,0.00024999,2]
[328100150,1716856234149,-447.27814853,0.00024999,2]
[328100151,1716856234158,-176.27234648,0.00024999,2]
[328100152,1716856234167,-313.71111822,0.00024999,2]
[328100153,1716856234177,-87493.84234042,0.00025,2]
[328100155,1716856240420,-507.276,0.00013955,2]
[328100156,1716856242104,-492.724,0.00013955,2]
[328100157,1716856242126,-39322.27073883,0.00025,11]
[328100158,1716856242135,-246086.37402899,0.00025,2]
[328100159,1716856242190,-1454.72619136,0.00025,2]
[328100162,1716856242985,-619452.06919562,0.00025,2]
[328100163,1716856243083,-5002.81296275,0.00025,2]
[328100164,1716856243095,-43329.38885,0.00025,2]
[328100165,1716856243109,-3471.546448,0.00025,2]
[328100166,1716856243120,-6790.78450001,0.00025,2]
[328100167,1716856243173,-15698.5786229,0.00025,2]
[328100168,1716856243184,-24759.9011372,0.00025,2]
[328100169,1716856243197,-1137.74093596,0.00025,2]
[328100170,1716856243209,-855.62630079,0.00025,2]
[328100171,1716856243221,-352.72799642,0.00025,2]
[328100172,1716856243267,-412.74691942,0.00025,2]
[328100173,1716856243279,-298.93134934,0.00025,2]
[328100174,1716856243366,-2990.27731016,0.00025,2]
[328100176,1716856243381,-923.86412109,0.00025,2]
[328100177,1716856243394,-176167.63890828,0.00025,2]
[328100197,1716856245896,-3424.309831,0.00025,2]
[328100198,1716856245909,-1825.79,0.00025,2]
[328100199,1716856245920,-6132.54188406,0.00025,2]
[328100200,1716856245932,-784.50318454,0.00025,2]
[328100201,1716856245943,-3555.70374447,0.00025,2]
[328100202,1716856245958,-8172.14810133,0.00025,2]
[328100203,1716856246029,-432.86678452,0.00024999,2]
[328100204,1716856246039,-178100.98359785,0.00025,2]
[328100205,1716856246050,-7146.8997323,0.00025,2]
[328100206,1716856246061,-2293.52835284,0.00025,2]
[328100207,1716856246134,-690.12611397,0.00025,2]
[328100208,1716856246146,-1673.68264166,0.00025,2]
[328100209,1716856246162,-575.28447363,0.00025,2]
[328100210,1716856246173,-938.63716978,0.00025,2]
[328100211,1716856246192,-13241.49106982,0.00025,2]
[328100212,1716856246217,-898.43368224,0.00025,2]
[328100213,1716856246226,-1020.99563388,0.00025,2]
[328100265,1716856833176,30000.0,0.00013,2]
[328100268,1716857245192,-241.17542667,0.00013848,2]
[328100280,1716857432073,-302.18251999,0.00013854,2]
[328100281,1716857432119,-203.36640079,0.00013854,2]
[328100282,1716857432132,-6736.86689921,0.00013855,2]
[328100283,1716857432146,-1084.00000008,0.00013855,2]
[328100284,1716857432267,-1421.03698775,0.00013855,2]
[328100285,1716857432281,-5010.99118424,0.00013855,2]
[328100286,1716857432296,-5262.08305289,0.00013855,2]
[328100287,1716857432310,-307.033495,0.00013857,2]
[328100288,1716857432321,-159.04,0.00013973,2]
[328100289,1716857432332,-909.39205211,0.00014,2]
[328100290,1716857434548,-130.45541431,0.00014,2]
[328100291,1716857434561,-150.0,0.00014986,2]
[328100292,1716857434572,-1044.31301003,0.00015,2]
[328100293,1716857434583,-155.0,0.00015,2]
[328100294,1716857434594,-30000.0,0.00015,2]
[328100295,1716857434605,-1228.26740172,0.000165,2]
[328100296,1716857434616,-104601.50692076,0.00017225,2]
[328100298,1716857434628,-499.99,0.0001726,2]
[328100300,1716857434639,-3884.49365683,0.000192,2]
[328100301,1716857434650,-846.5,0.00019494,2]
[328100302,1716857434665,-30000.0,0.0002,2]
[328100303,1716857434675,-1038.62893244,0.0002,7]
[328100304,1716857434686,-221.47,0.00021285,2]
[328100305,1716857434699,-846.5,0.00021758,2]
[328100306,1716857434709,-197.25,0.00021918,2]
[328100307,1716857434721,-9163.1503525,0.00022,2]
[328100308,1716857434733,-688.0,0.00022693,2]
[328100309,1716857434744,-250.0,0.00022696,2]
[328100310,1716857434754,-220.778226,0.0002274,2]
[328100311,1716857434765,-250.0,0.00022743,2]
[328100312,1716857434776,-235.64,0.00022806,2]
[328100313,1716857434787,-250.0,0.00022857,2]
[328100314,1716857434798,-290.89,0.0002306,2]
[328100315,1716857434808,-220.778226,0.00023562,2]
[328100316,1716857434821,-167.0,0.00023584,2]
[328100317,1716857434832,-433.45814983,0.00024,2]
[328100318,1716857434842,-472.80608482,0.00024,2]
[328100319,1716857434853,-846.5,0.00024022,2]
[328100320,1716857434864,-221.47,0.00024025,2]
[328100321,1716857434875,-180.0,0.0002423,2]
[328100322,1716857434886,-220.778226,0.00024384,2]
[328100323,1716857434896,-152.56919936,0.00024454,2]
[328100324,1716857434906,-172.47120211,0.00024586,2]
[328100325,1716857434917,-156.19060482,0.00024611,2]
[328100326,1716857434928,-153.59504667,0.00024813,2]
[328100327,1716857434939,-19539.14381127,0.00024889,2]
[328100328,1716857434950,-19539.1438112,0.00024889,2]
[328100329,1716857434961,-19539.1438112,0.00024889,2]
[328100330,1716857434972,-153.62139697,0.00024893,2]
[328100331,1716857434983,-658.00759934,0.00024899,2]
[328100332,1716857434995,-172.47120211,0.00024954,2]
[328100333,1716857435006,-1103.85692274,0.00024999,2]
[328100334,1716857435017,-11154.12804474,0.00024999,2]
[328100335,1716857435028,-1029.94791917,0.00024999,5]
[328100336,1716857435038,-29.00436612,0.00025,2]
[328100337,1716857435049,-155.0,0.00025,2]
[328100338,1716857435059,-500.0,0.00025,2]
[328100339,1716857435074,-946.23688278,0.00025,2]
[328100340,1716857435085,-927.63905296,0.00025,2]
[328100341,1716857435096,-257.35260169,0.00025,2]
[328100342,1716857435106,-224.52395494,0.00025,2]
[328100343,1716857435117,-155.0,0.00025,2]
[328100344,1716857435128,-155.0,0.00025,2]
[328100345,1716857435138,-7946.93293875,0.00025,2]
[328100346,1716857435149,-2278.39502981,0.00025,2]
[328100347,1716857435163,-166.00606019,0.00025,2]
[328100348,1716857435173,-96.52478417,0.00025125,2]
[328100349,1716857435186,-59.24153945,0.00025125,2]
[328100350,1716857435196,-152.56919936,0.00025138,2]
[328100351,1716857435207,-220.778226,0.00025205,2]
[328100352,1716857435217,-19539.1438112,0.00025222,2]
[328100353,1716857435228,-172.47120211,0.00025274,2]
[328100354,1716857435239,-156.19060482,0.00025375,2]
[328100355,1716857435249,-166.66666667,0.00025384,2]
[328100356,1716857435260,-3195.0,0.000254,3]
[328100357,1716857435270,-688.0,0.0002553,2]
[328100358,1716857435281,-172.47120211,0.00025545,2]
[328100359,1716857435292,-1040.0178,0.00025632,2]
[328100360,1716857435302,-152.96549235,0.00025649,2]
[328100361,1716857435315,-235.64,0.00025657,2]
[328100362,1716857435326,-172.47120211,0.00025696,2]
[328100363,1716857435336,-156.19060482,0.00025718,2]
[328100364,1716857435346,-3336.3254,0.00025732,2]
[328100365,1716857435356,-185.19566842,0.00025831,2]
[328100366,1716857435367,-155.44537493,0.00025832,2]
[328100367,1716857435377,-1385.90735399,0.00025832,2]
[328100368,1716857435388,-246.62401169,0.00025832,2]
[328100369,1716857435398,-2748.24028286,0.00025832,2]
[328100370,1716857435409,-104461.56169678,0.00025832,2]
[328100371,1716857435419,-152.56919936,0.00025859,2]
[328100372,1716857435429,-163.36,0.0002589,2]
[328100373,1716857435439,-152.56919936,0.00025949,2]
[328100374,1716857435450,-156.19060482,0.00025959,2]
[328100375,1716857435460,-323.28076305,0.00026017,2]
[328100376,1716857435470,-220.778226,0.00026027,2]
[328100377,1716857435480,-153.62139697,0.0002608,2]
[328100378,1716857435491,-658.00759929,0.00026099,2]
[328100379,1716857435501,-348.56790913,0.00026099,2]
[328100380,1716857435512,-164.25208458,0.00026099,2]
[328100381,1716857435522,-2082.28050159,0.000261,3]
[328100382,1716857435532,-152.56919936,0.00026117,2]
[328100383,1716857435543,-157.87166716,0.00026147,2]
[328100384,1716857435554,-157.19041339,0.00026208,2]
[328100385,1716857435566,-2069.4630181,0.00026262,2]
[328100386,1716857435577,-846.5,0.00026286,2]
[328100387,1716857435587,-166.83499667,0.00026309,2]
[328100388,1716857435907,-172.47120211,0.00026464,2]
[328100389,1716857435924,-150.0,0.00026466,2]
[328100390,1716857435934,-226.97,0.00026466,2]
[328100391,1716857435943,-163.69,0.00026466,2]
[328100392,1716857435953,-352.32,0.00026466,2]
[328100393,1716857435963,-150.0,0.00026466,2]
[328100394,1716857435972,-150.0,0.00026466,2]
[328100395,1716857435982,-421.33,0.00026466,2]
[328100396,1716857435991,-150.0,0.00026466,2]
[328100397,1716857436001,-152.08130216,0.00026531,2]
[328100398,1716857436010,-152.56919936,0.00026559,2]
[328100399,1716857436019,-19539.1438112,0.00026568,2]
[328100400,1716857436029,-157.19041339,0.00026587,2]
[328100401,1716857436039,-152.56919936,0.00026601,2]
[328100402,1716857436048,-153.62139697,0.00026612,2]
[328100403,1716857436057,-172.47120211,0.00026651,2]
[328100404,1716857436071,-57022.7415,0.00026693,2]
[328100405,1716857436080,-100000.0,0.00026695,2]
[328100406,1716857436089,-1000.0,0.00026695,2]
[328100407,1716857436098,-500.0,0.00026695,2]
[328100408,1716857436108,-151.0,0.00026695,7]
[328100409,1716857436117,-151.0,0.00026695,7]
[328100410,1716857436126,-695.233995,0.00026695,7]
[328100411,1716857436135,-151.0,0.00026695,7]
[328100412,1716857436144,-151.0,0.00026695,7]
[328100413,1716857436154,-151.0,0.00026695,7]
[328100414,1716857436163,-151.0,0.00026695,7]
[328100415,1716857436172,-151.0,0.00026695,7]
[328100416,1716857436182,-271.501696,0.00026695,7]
[328100417,1716857436191,-151.0,0.00026695,7]
[328100418,1716857436201,-151.0,0.00026695,7]
[328100419,1716857436210,-151.0,0.00026695,7]
[328100420,1716857436219,-185.159711,0.00026695,7]
[328100421,1716857436229,-185.159711,0.00026695,7]
[328100422,1716857436238,-151.0,0.00026695,7]
[328100423,1716857436247,-151.0,0.00026695,7]
[328100424,1716857436256,-151.0,0.00026695,7]
[328100425,1716857436265,-151.0,0.00026695,7]
[328100426,1716857436275,-290.379622,0.00026695,7]
[328100427,1716857436284,-151.0,0.00026695,7]
[328100428,1716857436294,-290.379622,0.00026695,7]
[328100429,1716857436303,-347.954734,0.000267,2]
[328100430,1716857436316,-18118.88411596,0.000267,2]
[328100431,1716857436326,-163.28469,0.000267,2]
[328100432,1716857436335,-154.23507296,0.00026713,2]
[328100433,1716857436344,-323.28076299,0.00026745,2]
[328100434,1716857436353,-172.47120211,0.00026755,2]
[328100435,1716857436362,-221.47,0.00026765,2]
[328100436,1716857436371,-1116.5392125,0.00026786,2]
[328100437,1716857436381,-151.01,0.0002679,2]
[328100438,1716857436390,-151.01,0.0002679,2]
[328100439,1716857436399,-151.01,0.0002679,2]
[328100440,1716857436409,-43554.22880663,0.00026795,2]
[328100441,1716857436421,-350.77119337,0.00026795,2]
[328100442,1716857436431,-303.86142036,0.00026795,2]
[328100443,1716857436440,-156.28621988,0.00026795,2]
[328100444,1716857436450,-2330.98143457,0.00026795,2]
[328100445,1716857436460,-1249.88651912,0.00026795,2]
[328100446,1716857436470,-210.49319076,0.00026795,2]
[328100447,1716857436480,-155.0,0.00026795,2]
[328100448,1716857436489,-2002.70430529,0.00026795,2]
[328100449,1716857436499,-1381.50201327,0.00026795,2]
[328100450,1716857436508,-2188.66829677,0.00026795,2]
[328100451,1716857436518,-155.0,0.00026795,2]
[328100452,1716857436528,-168.06827952,0.00026795,2]
[328100453,1716857436537,-1495.21660452,0.00026795,2]
[328100454,1716857436547,-1363.53977896,0.00026795,2]
[328100455,1716857436556,-236.34558068,0.00026795,2]
[328100463,1716857438617,-151.0,0.00026695,7]
[328100464,1716857438627,-451.584341,0.00026795,2]
[328100465,1716857438639,-2323.6264483,0.00026795,2]
[328100466,1716857438649,-2369.82337701,0.00026795,2]
[328100467,1716857438662,-1065.00112556,0.00026795,2]
[328100468,1716857438672,-1900.99621325,0.00026795,2]
[328100469,1716857438682,-1180.6964074,0.00026795,2]
[328100470,1716857438691,-2901.45249462,0.00026796,2]
[328100471,1716857438702,-36345.73917557,0.00026797,2]
[328100472,1716857438713,-2345.52658595,0.00026797,2]
[328100473,1716857438780,-1093.90713873,0.00026797,2]
[328100474,1716857438790,-157.19041339,0.00026797,2]
[328100475,1716857438800,-1200.46047298,0.00026798,2]
[328100476,1716857438809,-5302.31690687,0.00026798,2]
[328100477,1716857438823,-1183.10102566,0.00026798,2]
[328100482,1716857440840,-2078.076,0.00026798,2]
[328100483,1716857441785,-11669.78165899,0.00026798,2]
[328100484,1716857441795,-2000.0,0.00026798,2]
[328100485,1716857441804,-200.0,0.00026798,2]
[328100486,1716857441815,-157.245632,0.00026798,7]
[328100487,1716857441824,-200.0,0.00026798,2]
[328100488,1716857441834,-290.577235,0.00026798,7]
[328100489,1716857441843,-151.0,0.00026798,7]
[328100490,1716857441852,-151.0,0.00026798,7]
[328100491,1716857441862,-151.0,0.00026798,7]
[328100492,1716857441871,-151.0,0.00026798,7]
[328100493,1716857441881,-151.0,0.00026798,7]
[328100494,1716857441890,-151.0,0.00026798,7]
[328100495,1716857441899,-151.0,0.00026798,7]
[328100496,1716857441908,-151.0,0.00026798,7]
[328100497,1716857441917,-211.878045,0.00026798,7]
[328100498,1716857441927,-185.159711,0.00026798,7]
[328100499,1716857441936,-185.159711,0.00026798,7]
[328100500,1716857441946,-151.0,0.00026798,7]
[328100501,1716857441954,-151.0,0.00026798,7]
[328100502,1716857441964,-151.0,0.00026798,7]
[328100503,1716857441974,-151.0,0.00026798,7]
[328100504,1716857441983,-290.379622,0.00026798,7]
[328100505,1716857441992,-290.72211,0.00026798,7]
[328100506,1716857442001,-290.379622,0.00026798,7]
[328100507,1716857442011,-151.0,0.00026798,7]
[328100508,1716857442020,-208.28691503,0.00026799,2]
[328100509,1716857442029,-5876.79869969,0.00026799,2]
[328100510,1716857442038,-384.82580517,0.00026799,2]
[328100511,1716857442056,-191.69063508,0.00026799,2]
[328100512,1716857442069,-10054.66089803,0.000268,11]
[328100513,1716857442086,-1164.39990789,0.000268,11]
[328100531,1716857444522,-151.0,0.00026695,7]
[328100532,1716857444533,-2048.85936498,0.000268,11]
[328100543,1716857448334,-660.472296,0.00026695,7]
[328100544,1716857448344,-151.0,0.00026798,7]
[328100545,1716857448354,-660.472296,0.00026798,7]
[328100546,1716857448364,-212.1543667,0.00026799,2]
[328100547,1716857448373,-208.37659574,0.00026799,2]
[328100548,1716857448383,-538.98244559,0.000268,11]
[328100549,1716857448397,-32924.04404096,0.000268,11]
[328100550,1716857448406,-105705.95595913,0.000268,2]
[328100551,1716857448555,-339.85302779,0.00026799,2]
[328100557,1716858311212,1191.17,0.000181,10]
[328100567,1716858632391,-154.52979958,0.00013873,2]
[328100570,1716858632402,-180.92,0.00013973,2]
[328100572,1716858632412,-162.33,0.00013973,2]
[328100574,1716858632422,-105.60348323,0.00013973,2]
[328100577,1716858633697,-54.71651677,0.00013973,2]
[328100578,1716858633707,-736.8336868,0.00017259,2]
[328100579,1716858633717,-154.52979958,0.00018144,2]
[328100580,1716858633727,-345.41158389,0.0002,2]
[328100581,1716858633736,-154.52979958,0.00022415,2]
[328100582,1716858633746,-712.61,0.00022902,2]
[328100583,1716858633756,-433.45814983,0.00024,2]
[328100584,1716858633766,-778.47825789,0.00024564,2]
[328100585,1716858633775,-162.0217594,0.00024615,2]
[328100586,1716858633785,-250.0,0.00024623,2]
[328100587,1716858633795,-250.0,0.00024661,2]
[328100588,1716858633805,-412.8,0.00024676,2]
[328100589,1716858633814,-164.37,0.00024746,2]
[328100590,1716858633825,-250.0,0.00024752,2]
[328100591,1716858633834,-159.05122007,0.00024804,2]
[328100592,1716858633844,-161.05208565,0.0002481,2]
[328100593,1716858633853,-154.23507296,0.00024835,2]
[328100594,1716858633862,-237.39,0.00024848,2]
[328100595,1716858633872,-778.47825789,0.00024963,2]
[328100596,1716858633881,-155.0,0.00025,2]
[328100597,1716858633892,-1050.0,0.00025,2]
[328100598,1716858633901,-155.0,0.00025072,2]
[328100599,1716858633911,-155.0,0.00025072,2]
[328100600,1716858633921,-172.95,0.00025073,2]
[328100601,1716858633931,-367.48131054,0.00025076,2]
[328100602,1716858633940,-159.05122007,0.00025145,2]
[328100603,1716858633950,-712.61,0.00025166,2]
[328100604,1716858633960,-153.04497183,0.00025189,2]
[328100605,1716858633969,-242.4,0.00025248,2]
[328100606,1716858633979,-861.0,0.000253,3]
[328100607,1716858633988,-153.04497183,0.00025309,2]
[328100608,1716858633998,-3140.0,0.000254,3]
[328100609,1716858634007,-778.47825789,0.00025416,2]
[328100610,1716858634017,-153.59504667,0.00025705,2]
[328100611,1716858634026,-166.18682385,0.00025754,2]
[328100612,1716858634036,-153.37562636,0.00025787,2]
[328100613,1716858634047,-160.45036106,0.00025793,2]
[328100614,1716858634057,-162.0217594,0.00025829,2]
[328100615,1716858634066,-160.45036106,0.00026111,2]
[328100616,1716858634079,-153.13247756,0.0002624,2]
[328100617,1716858634090,-605.75437141,0.00026262,2]
[328100618,1716858634102,-245.225344,0.00026262,2]
[328100619,1716858634112,-33.38344009,0.00026288,2]
[328100620,1716858634124,-745.0948178,0.00026288,2]
[328100621,1716858634133,-370.7075139,0.000263,2]
[328100622,1716858634145,-1129.2924861,0.000263,2]
[328100623,1716858634157,-172.95,0.00026327,2]
[328100624,1716858634166,-162.0217594,0.00026353,2]
[328100625,1716858634176,-162.0217594,0.00026443,2]